bitfinex/quotes_ETHUSD_20240811
["timestamp","ask_amount","ask_price","bid_price","bid_amount"]
[1723370982928,2.60252,2689.7,2689.1,5.20607]
[1723370983148,2.60252,2689.7,2689.1,6.05266826]
[1723370983368,2.60252,2689.7,2689.1,3.44963826]
[1723370983665,3.0,2689.8,2689.2,2.60294]
[1723370984173,3.0,2689.8,2689.2,5.09044]
[1723370984352,5.60248,2689.8,2689.2,5.09044]
[1723370984727,5.60248,2689.8,2689.2,5.94444783]
[1723370986328,3.0,2689.8,2689.4,2.60275]
[1723370986555,4.90268,2690.0,2689.2,3.34150783]
[1723370986556,2.3004,2690.0,2689.2,3.34150783]
[1723370986732,4.90271,2690.0,2689.3,2.60289]
[1723370986937,5.60232,2689.9,2689.3,2.60289]
[1723370987238,0.1321805,2690.1,2689.4,3.08193978]
[1723370987554,0.1321805,2690.1,2689.6,2.60256]
[1723370988231,0.1321805,2690.1,2689.6,2.60255]
[1723370989032,0.1321805,2690.1,2689.7,2.60251]
[1723370989380,0.1321805,2690.1,2689.6,2.60255]
[1723370989676,0.1321805,2690.1,2689.8,2.4875]
[1723370990050,0.1321805,2690.1,2690.0,2.60223]
[1723370990231,0.1321805,2690.1,2689.8,5.08985]
[1723370990431,0.1321805,2690.1,2689.4,2.60278]
[1723370990432,0.1321805,2690.1,2689.4,5.09025]
[1723370990754,2.60238,2689.9,2689.4,2.4875]
[1723370991936,2.60227,2690.0,2689.4,5.09025]
[1723370992136,2.7343405,2690.1,2689.4,5.0903]
[1723370992482,2.60237,2689.9,2689.4,2.4875]
[1723370992636,2.60237,2689.9,2689.4,5.0903]
[1723370992838,2.60237,2689.9,2689.4,2.4875]
[1723370993434,0.50347405,2690.0,2689.0,2.4875]
[1723370993671,0.1321805,2690.1,2689.0,2.4875]
[1723370993672,2.60261,2689.7,2689.0,2.4875]
[1723370993977,2.60272,2689.5,2689.0,5.09064]
[1723370994134,4.90301,2689.7,2689.0,5.09064]
[1723370994135,7.50556,2689.7,2689.1,2.60308]
[1723370994592,4.90298,2689.7,2689.0,5.09067]
[1723370994872,2.60269,2689.6,2689.0,5.59974]
[1723370995771,4.90297,2689.7,2689.1,2.60308]
[1723370997288,4.90297,2689.7,2689.0,2.99657]
[1723370997449,2.60268,2689.6,2689.0,5.59974]
[1723370997656,4.90297,2689.7,2689.1,2.60309]
[1723370997866,7.50556,2689.7,2689.1,2.60309]
[1723370998061,4.90297,2689.7,2689.1,2.60309]
[1723370999100,2.60257,2689.7,2689.1,3.423326]
[1723370999388,3.1321805,2690.1,2689.6,2.60253]
[1723370999592,3.1321805,2690.1,2689.3,2.4875]
[1723370999593,0.1321805,2690.1,2689.3,5.09036]
[1723370999792,2.60232,2689.9,2689.3,5.09036]
[1723370999978,2.60232,2689.9,2689.3,7.69318]
[1723371000336,3.04752855,2690.1,2689.5,2.6027]
[1723371000661,3.04752855,2690.1,2689.6,2.60261]
[1723371000856,0.1321805,2690.1,2689.7,2.6025]
[1723371001059,0.1321805,2690.1,2689.6,2.60261]
[1723371001060,0.1321805,2690.1,2689.8,2.60242]
[1723371001391,0.1321805,2690.1,2689.8,5.08987]
[1723371001615,0.1321805,2690.1,2689.8,2.4875]
[1723371001984,0.1321805,2690.1,2689.7,2.60246]
[1723371003108,0.1321805,2690.1,2689.8,2.60241]
[1723371003311,0.1321805,2690.1,2689.8,0.52792212]
[1723371003511,0.1321805,2690.1,2690.0,2.4303]
[1723371003808,0.1321805,2690.1,2690.0,5.03253]
[1723371004213,0.1321805,2690.1,2690.0,5.10686929]
[1723371004374,0.1321805,2690.1,2689.4,2.4303]
[1723371004375,2.7343705,2690.1,2689.4,2.4303]
[1723371004574,5.3365705,2690.1,2689.5,2.84566]
[1723371004871,0.1321805,2690.1,2689.5,2.84566]
[1723371005128,0.1321805,2690.1,2689.8,2.60241]
[1723371005409,0.1321805,2690.1,2689.8,3.122895]
[1723371005598,0.1321805,2690.1,2689.9,5.03262]
[1723371005795,0.1321805,2690.1,2690.0,2.60223]
[1723371005996,0.1321805,2690.1,2690.0,2.67657189]
[1723371006386,0.1321805,2690.1,2690.0,2.60223]
[1723371006586,0.1321805,2690.1,2690.0,3.365715]
[1723371006829,0.1321805,2690.1,2690.0,6.0422847]
[1723371007176,0.1321805,2690.1,2690.0,5.967945]
[1723371007479,0.1321805,2690.1,2690.0,6.59227796]
[1723371008216,0.1321805,2690.1,2690.0,9.120175]
[1723371008515,0.1321805,2690.1,2690.0,8.948245]
[1723371010207,0.1321805,2690.1,2690.0,11.550475]
[1723371010373,0.1321805,2690.1,2690.0,14.152705]
[1723371010575,0.1321805,2690.1,2690.0,14.550475]
[1723371011185,0.1321805,2690.1,2690.0,17.152705]
[1723371012314,2.60054,2691.8,2691.1,2.6011]
[1723371012315,2.3886,2691.7,2691.1,2.6011]
[1723371012491,4.98918,2691.7,2691.1,2.6011]
[1723371012674,5.60069,2691.6,2691.1,2.6011]
[1723371012884,2.6008,2691.5,2690.9,5.2026]
[1723371013097,2.6009,2691.4,2690.9,0.76329]
[1723371013600,2.6009,2691.4,2690.8,2.60145]
[1723371013784,2.60137,2690.9,2690.2,5.03232]
[1723371013985,2.60137,2690.9,2690.3,2.60188]
[1723371013986,2.60142,2690.9,2690.3,2.60188]
[1723371014395,2.60175,2690.5,2689.9,2.60224]
[1723371014596,2.3886,2690.6,2690.0,2.60214]
[1723371014976,4.99025,2690.6,2690.0,2.60214]
[1723371015481,2.3886,2690.6,2690.0,2.60214]
[1723371015713,2.3886,2690.6,2690.1,2.9126594]
[1723371015920,2.3886,2690.6,2690.1,2.9126094]
[1723371016125,2.3886,2690.6,2690.1,0.3105394]
[1723371016506,2.3886,2690.6,2690.2,2.60196]
[1723371016822,3.0,2690.7,2690.3,2.60191]
[1723371016991,2.3886,2690.8,2690.3,2.60191]
[1723371017196,2.3886,2690.8,2690.3,2.60188]
[1723371017395,2.3886,2690.8,2690.3,5.20376]
[1723371017593,4.98981,2691.1,2690.5,2.60172]
[1723371017901,3.0,2691.0,2690.5,2.60172]
[1723371018095,2.3886,2691.1,2690.7,2.60153]
[1723371018410,2.60119,2691.1,2690.6,0.260172]
[1723371018614,2.60119,2691.1,2690.6,2.60162]
[1723371018615,4.98979,2691.1,2690.6,2.60162]
[1723371018839,2.60102,2691.3,2690.6,2.60162]
[1723371018840,2.60108,2691.2,2690.6,2.60162]
[1723371019130,2.60102,2691.3,2690.5,2.60167]
[1723371019131,2.60102,2691.3,2690.7,3.121789]
[1723371019295,2.60102,2691.3,2690.7,2.60146]
[1723371020123,4.98949,2691.4,2690.8,2.4303]
[1723371020421,7.59043,2691.4,2690.9,3.11195809]
[1723371020642,7.59043,2691.4,2690.8,2.4303]
[1723371020643,2.60102,2691.3,2690.8,2.4303]
[1723371020921,2.60102,2691.3,2690.7,2.60146]
[1723371021106,2.60108,2691.2,2690.5,2.60169]
[1723371021309,2.6013,2691.0,2690.5,2.60169]
[1723371021487,2.3886,2691.1,2690.6,2.60162]
[1723371021689,4.98977,2691.1,2690.6,2.60162]
[1723371022093,2.60126,2691.0,2690.4,2.60175]
[1723371022295,2.3886,2691.1,2690.5,2.67601669]
[1723371022296,4.98977,2691.1,2690.5,2.67601669]
[1723371022493,4.98977,2691.1,2690.6,0.32312723]
[1723371022721,2.3886,2691.1,2690.6,2.92475723]
[1723371022887,7.64697,2691.4,2690.7,2.60147]
[1723371023086,3.0,2691.3,2690.7,2.6757967]
[1723371023400,5.60097,2691.3,2690.8,2.60142]
[1723371023821,3.0,2691.3,2690.8,2.60138]
[1723371024138,8.04598,2691.4,2690.9,2.60129]
[1723371024421,8.04598,2691.4,2690.8,2.90126339]
[1723371024422,5.4451,2691.4,2690.8,2.90126339]
[1723371024640,5.04597,2691.4,2690.9,3.13183634]
[1723371024834,2.4451,2691.7,2691.0,3.15117]
[1723371025129,2.4451,2691.7,2691.1,0.36816563]
[1723371025291,2.4451,2691.7,2691.2,2.60106]
[1723371025631,2.4451,2691.7,2691.2,5.27631737]
[1723371025789,2.4451,2691.7,2691.2,2.601]
[1723371026301,5.04575,2691.7,2691.2,2.60105]
[1723371026500,5.04575,2691.7,2691.2,3.21309156]
[1723371026941,2.60049,2691.8,2691.2,8.21769156]
[1723371027319,2.6004,2691.9,2691.3,3.53380063]
[1723371027518,5.4451,2692.0,2691.2,0.61204156]
[1723371027823,2.60093,2691.4,2690.9,9.9513]
[1723371028021,5.20147,2691.6,2691.0,2.60124]
[1723371028249,2.60073,2691.6,2691.1,5.0047]
[1723371028410,2.60054,2691.8,2691.2,2.601]
[1723371028611,3.0,2691.7,2691.1,5.765294]
[1723371028812,3.0,2691.7,2691.1,0.760594]
[1723371028813,2.4451,2691.6,2691.1,0.760594]
[1723371029054,2.60094,2691.4,2690.8,2.60145]
[1723371029219,2.60099,2691.3,2690.7,5.00509]
[1723371029424,2.60099,2691.3,2690.7,5.00508]
[1723371029621,2.60099,2691.3,2690.8,2.478508]
[1723371030147,2.60099,2691.3,2690.6,22.38163]
[1723371030317,2.60117,2691.1,2690.6,22.38163]
[1723371030516,2.60117,2691.1,2690.6,19.78]
[1723371030743,2.60137,2690.9,2690.6,19.78]
[1723371031517,2.60137,2690.9,2690.2,12.35557]
[1723371031716,2.4451,2691.2,2690.2,7.850557]
[1723371031717,2.60171,2690.6,2690.2,7.850557]
[1723371031918,7.64812,2690.8,2690.2,7.35]
[1723371032346,2.60156,2690.7,2690.2,7.35]
[1723371032757,5.04659,2690.8,2690.2,7.35]
[1723371033352,7.64813,2690.8,2690.2,7.35]
[1723371033566,7.64813,2690.8,2690.3,0.995211]
[1723371033770,5.04659,2690.8,2690.3,0.995211]
[1723371034057,7.64813,2690.8,2690.3,0.995211]
[1723371034262,5.04659,2690.8,2690.3,0.995211]
[1723371035960,2.60149,2690.8,2690.3,6.000741]
[1723371036160,5.4451,2691.1,2690.5,2.60174]
[1723371036370,2.60107,2691.2,2690.7,2.60154]
[1723371036576,2.60107,2691.2,2690.6,2.47792333]
[1723371036876,2.60107,2691.2,2690.7,0.50795833]
[1723371037021,2.60107,2691.2,2690.8,0.05219225]
[1723371037366,5.04602,2691.4,2690.8,0.05219225]
[1723371037367,2.60103,2691.3,2690.8,0.05219225]
[1723371037522,2.60112,2691.2,2690.8,0.05219225]
[1723371038563,2.60099,2691.3,2690.8,0.61615464]
[1723371039143,2.60107,2691.2,2690.8,0.61615464]
[1723371039347,5.20221,2691.2,2690.8,0.05219225]
[1723371039554,2.60107,2691.2,2690.8,0.05219225]
[1723371039749,2.60125,2691.1,2690.8,0.05219225]
[1723371040470,2.60107,2691.2,2690.8,0.05219225]
[1723371040675,2.60107,2691.2,2690.8,0.37579747]
[1723371041350,2.60107,2691.2,2690.8,0.05219225]
[1723371041552,0.18650688,2692.0,2690.8,0.05219225]
[1723371041553,2.60068,2691.6,2690.9,2.4036]
[1723371041764,2.60068,2691.6,2691.1,2.60115]
[1723371041936,2.60102,2691.3,2691.0,0.05219699]
[1723371042279,2.60102,2691.3,2690.7,10.45948833]
[1723371042280,2.60102,2691.3,2691.1,0.05218038]
[1723371042478,2.60102,2691.3,2690.7,10.45948833]
[1723371042776,2.4451,2691.5,2690.8,0.05223021]
[1723371042777,2.60117,2691.1,2690.8,0.05223021]
[1723371043141,2.60133,2691.0,2690.8,0.05223021]
[1723371043336,5.00612,2691.0,2690.8,0.05223021]
[1723371043569,2.60141,2690.9,2690.4,8.6850741]
[1723371043879,2.60141,2690.9,2690.5,1.12869241]
[1723371044374,2.60142,2690.9,2690.4,7.35]
[1723371044536,5.4048,2691.3,2690.4,9.95179]
[1723371044737,5.20263,2691.0,2690.5,0.995179]
[1723371044936,2.60138,2690.9,2690.4,9.95179]
[1723371045180,5.4048,2691.3,2690.4,7.35]
[1723371045181,2.60151,2690.8,2690.4,7.35]
[1723371045344,8.0058,2691.3,2690.4,7.35]
[1723371045345,5.20264,2691.0,2690.4,7.35]
[1723371045543,2.60131,2691.0,2690.4,7.35]
[1723371045873,2.60131,2691.0,2690.4,9.95178]
[1723371046073,2.60131,2691.0,2690.5,0.995178]
[1723371046271,2.60131,2691.0,2690.5,3.67122911]
[1723371046478,2.60131,2691.0,2690.5,1.06950911]
[1723371046677,2.60131,2691.0,2690.5,0.995178]
[1723371046837,2.60109,2691.2,2690.6,2.67587483]
[1723371047042,2.60109,2691.2,2690.7,2.67700528]
[1723371047346,2.60109,2691.2,2690.7,5.27854528]
[1723371047539,2.60126,2691.0,2690.7,2.67700528]
[1723371047738,2.60109,2691.2,2690.7,0.36710528]
[1723371047943,2.60109,2691.2,2690.8,0.29686853]
[1723371048176,2.60109,2691.2,2690.7,0.36710528]
[1723371048678,2.60111,2691.2,2690.7,0.36710528]
[1723371048876,2.60111,2691.2,2690.7,2.96860528]
[1723371049263,3.0,2691.3,2690.7,5.57008528]
[1723371049466,2.6009,2691.4,2690.8,0.63132669]
[1723371049775,2.6009,2691.4,2690.8,3.23277669]
[1723371049979,2.60098,2691.3,2690.8,0.63132669]
[1723371050280,2.60098,2691.3,2690.9,0.3599912]
[1723371050776,2.68086322,2692.5,2690.9,0.3599912]
[1723371050983,2.4048,2692.3,2691.5,2.3099]
[1723371051144,2.60049,2691.8,2691.3,2.3099]
[1723371051344,2.60029,2692.0,2691.6,0.05204795]
[1723371051538,2.60029,2692.0,2691.3,4.9108]
[1723371051539,5.20066,2692.0,2691.3,4.9108]
[1723371051851,2.60029,2692.0,2691.4,3.09195]
[1723371052050,2.60029,2692.0,2691.5,0.05185935]
[1723371052584,2.59995,2692.4,2691.8,2.3099]
[1723371052745,2.59995,2692.4,2691.8,0.28599]
[1723371052943,2.60011,2692.2,2691.9,0.05177775]
[1723371053379,2.59994,2692.4,2691.9,0.05177775]
[1723371054079,2.59983,2692.5,2691.9,0.05177775]
[1723371054253,7.60432,2692.6,2692.0,0.30124804]
[1723371054455,2.59984,2692.5,2692.1,0.05174455]
[1723371054770,2.59984,2692.5,2692.1,0.58549581]
[1723371055066,2.59991,2692.4,2692.1,0.05174455]
[1723371055583,2.60001,2692.3,2692.1,0.05174455]
[1723371055756,2.60001,2692.3,2691.8,0.3602796]
[1723371055954,2.6,2692.3,2692.2,0.05172796]
[1723371056267,2.60011,2692.2,2691.7,2.3099]
[1723371056441,2.60023,2692.1,2691.7,3.796022]
[1723371056647,2.6,2692.3,2691.7,3.796022]
[1723371056648,2.60007,2692.3,2691.7,3.796022]
[1723371057050,2.60007,2692.3,2691.7,6.396562]
[1723371057279,2.60007,2692.3,2691.7,1.486122]
[1723371057581,2.60007,2692.3,2691.7,4.086702]
[1723371057877,2.60007,2692.3,2691.8,1.1436702]
[1723371058585,2.60007,2692.3,2691.8,3.4535702]
[1723371058752,2.60007,2692.3,2691.8,6.0540502]
[1723371059371,5.20014,2692.3,2691.8,3.4535702]
[1723371059874,5.20014,2692.3,2691.9,0.34535702]
[1723371059875,2.60007,2692.3,2691.9,0.34535702]
[1723371060485,2.60007,2692.3,2691.6,7.35]
[1723371060486,2.60053,2691.8,2691.6,9.6599]
[1723371060695,2.60053,2691.8,2691.0,0.55]
[1723371060696,2.60039,2691.9,2691.2,7.35]
[1723371060878,2.60087,2691.5,2691.2,7.35]
[1723371061079,2.60084,2691.5,2691.2,7.35]
[1723371061675,2.60084,2691.5,2691.0,2.3099]
[1723371061676,2.60102,2691.3,2691.0,2.3099]
[1723371061897,2.60102,2691.3,2690.8,7.35]
[1723371062063,2.60102,2691.3,2690.9,1.226139]
[1723371062505,5.20169,2691.5,2690.9,1.226139]
[1723371062701,2.60097,2691.3,2690.9,1.226139]
[1723371063568,2.60084,2691.5,2690.9,1.226139]
[1723371063768,2.60094,2691.4,2691.0,0.8576139]
[1723371064012,2.60084,2691.5,2691.0,0.8576139]
[1723371064229,5.2013,2691.7,2691.1,2.57221361]
[1723371064535,2.60103,2691.3,2690.9,1.226139]
[1723371064831,2.60084,2691.5,2690.9,2.60134]
[1723371065138,5.2017,2691.5,2690.9,2.60134]
[1723371065347,2.60084,2691.5,2691.0,3.75317]
[1723371065494,5.20168,2691.5,2691.0,3.75317]
[1723371065695,2.60099,2691.3,2691.0,3.75317]
[1723371065924,2.60069,2691.6,2691.0,6.35436]
[1723371066134,4.86185,2691.7,2691.1,0.6428678]
[1723371066298,2.6003,2692.0,2691.5,2.60077]
[1723371066497,2.60039,2691.9,2691.4,2.60087]
[1723371066796,2.60002,2692.3,2691.8,2.60047]
[1723371066994,2.60029,2692.0,2691.9,0.260047]
[1723371067297,2.60029,2692.0,2691.9,0.04812932]
[1723371067509,2.60029,2692.0,2691.5,5.09866]
[1723371067704,2.60015,2692.2,2691.6,0.04817912]
[1723371067960,2.60015,2692.2,2691.6,0.81812712]
[1723371068132,2.60015,2692.2,2691.6,3.41879712]
[1723371068308,2.60008,2692.3,2691.7,2.60052]
[1723371068511,2.60008,2692.3,2691.8,0.04814592]
[1723371068512,2.6001,2692.2,2691.8,0.04814592]
[1723371068814,2.60021,2692.1,2691.5,2.4979]
[1723371069124,2.60021,2692.1,2691.5,5.868622]
[1723371069320,2.6003,2692.0,2691.6,0.04817912]
[1723371069932,5.20028,2692.2,2691.6,0.04817912]
[1723371070102,5.20028,2692.2,2691.6,2.64885912]
[1723371070297,2.6001,2692.2,2691.6,3.50061023]
[1723371070725,2.60023,2692.1,2691.6,3.50061023]
[1723371071443,2.60011,2692.2,2691.6,3.50054023]
[1723371071755,5.20028,2692.2,2691.7,0.59984402]
[1723371071935,2.60022,2692.1,2691.7,0.64781282]
[1723371072562,2.60011,2692.2,2691.7,0.64781282]
[1723371072714,2.59995,2692.4,2691.7,0.64781282]
[1723371072924,2.60013,2692.2,2691.7,0.64781282]
[1723371073117,2.60013,2692.2,2691.7,0.0479688]
[1723371073316,2.6003,2692.0,2691.5,5.09867]
[1723371073536,2.60013,2692.2,2691.6,0.0479854]
[1723371073747,2.6002,2692.1,2691.6,0.0479854]
[1723371074051,2.60013,2692.2,2691.6,2.6486454]
[1723371074843,2.60013,2692.2,2691.7,2.60056]
[1723371075034,2.60013,2692.2,2691.7,3.42626224]
[1723371075358,2.60002,2692.3,2691.8,0.0479522]
[1723371075522,2.59995,2692.4,2691.8,2.6484322]
[1723371075725,2.59995,2692.4,2691.8,2.67477096]
[1723371076055,2.60017,2692.2,2691.9,0.04774947]
[1723371076238,2.60029,2692.1,2691.9,0.04774947]
[1723371076439,5.20057,2692.1,2691.5,9.8479]
[1723371076629,2.6003,2692.0,2691.6,0.38560839]
[1723371076829,2.6003,2692.0,2691.5,12.44867]
[1723371077132,2.6001,2692.2,2691.6,2.60067]
[1723371077344,4.86135,2692.2,2691.5,7.35]
[1723371077548,2.60059,2691.7,2691.5,7.35]
[1723371077856,2.60041,2691.9,2691.5,7.35]
[1723371078218,2.60049,2691.8,2691.5,7.35]
[1723371078655,2.60059,2691.7,2691.5,7.35]
[1723371078861,0.486135,2692.1,2691.0,22.2779]
[1723371079043,2.60085,2691.5,2691.0,22.2779]
[1723371079366,2.60084,2691.5,2691.0,22.2779]
[1723371082050,2.60084,2691.5,2691.1,0.04812921]
[1723371082550,4.86183,2691.7,2691.1,0.04812921]
[1723371082863,5.60041,2691.9,2691.1,2.72355255]
[1723371083047,5.60045,2691.9,2691.3,2.60091]
[1723371083251,5.60045,2691.9,2691.3,5.20182]
[1723371083569,5.60045,2691.9,2691.4,2.64893318]
[1723371083570,2.60045,2691.9,2691.4,2.64893318]
[1723371083741,2.60023,2692.1,2691.5,2.60077]
[1723371083742,2.6003,2692.0,2691.5,2.60077]
[1723371083935,2.6003,2692.0,2691.5,2.64883658]
[1723371084530,2.6004,2691.9,2691.5,0.04806658]
[1723371084725,2.6004,2691.9,2691.3,3.44095938]
[1723371084966,2.376,2692.3,2691.4,0.63293912]
[1723371085267,2.60037,2692.0,2691.4,2.64890318]
[1723371085493,2.60039,2691.9,2691.4,0.04808318]
[1723371085630,5.20086,2691.9,2691.4,0.04808318]
[1723371085831,5.20084,2691.9,2691.4,0.04808318]
[1723371086151,2.60066,2691.7,2691.4,0.04808318]
[1723371086322,2.60042,2691.9,2691.2,5.0086]
[1723371086528,2.60042,2691.9,2691.3,0.04809979]
[1723371086743,2.60058,2691.7,2691.3,0.04809979]
[1723371086932,2.60058,2691.7,2691.2,5.0086]
[1723371087151,2.60042,2691.9,2691.3,0.12240397]
[1723371087354,2.6005,2691.8,2691.3,0.56120019]
[1723371087661,4.97606,2692.3,2691.3,0.56120019]
[1723371087662,2.60027,2692.1,2691.3,0.56120019]
[1723371087963,2.60033,2692.0,2691.4,2.6008]
[1723371088260,2.60026,2692.1,2691.5,2.60077]
[1723371088469,5.20055,2692.1,2691.6,0.52496532]
[1723371088771,2.6003,2692.0,2691.6,0.04804997]
[1723371090165,2.60047,2691.9,2691.6,0.04804997]
[1723371090470,0.260047,2691.8,2691.3,2.60093]
[1723371090680,2.60047,2691.9,2691.7,0.04821191]
[1723371090865,2.60047,2691.9,2691.4,2.60084]
[1723371091074,3.0,2692.4,2691.8,0.0481953]
[1723371091269,3.93160061,2693.5,2692.0,2.60021]
[1723371091270,2.59978,2692.6,2692.0,2.60021]
[1723371091577,2.59978,2692.6,2692.1,2.64828232]
[1723371091780,2.7317605,2692.8,2692.1,2.64821232]
[1723371091979,5.3313705,2692.8,2692.1,2.64821232]
[1723371092280,3.37035705,2692.7,2692.1,5.24835232]
[1723371092586,2.59962,2692.7,2692.1,0.04809232]
[1723371092792,2.59981,2692.5,2691.9,5.00799]
[1723371093083,2.59981,2692.5,2692.2,0.04781365]
[1723371093282,2.59981,2692.5,2691.9,5.00799]
[1723371093283,5.19969,2692.5,2691.9,5.00799]
[1723371093583,2.59981,2692.5,2691.9,5.00799]
[1723371093809,2.60006,2692.3,2692.0,0.04784685]
[1723371094142,2.6002,2692.1,2691.7,2.4076]
[1723371094445,5.26315901,2692.5,2691.8,0.04791802]
[1723371094673,2.8662399,2692.4,2691.8,2.64830802]
[1723371095063,2.60002,2692.3,2691.8,2.64830802]
[1723371095787,2.6001,2692.2,2691.8,0.04791802]
[1723371095984,2.6001,2692.2,2691.7,2.4076]
[1723371096197,2.60003,2692.3,2691.9,0.04790142]
[1723371096512,2.60003,2692.3,2691.8,2.64839802]
[1723371096668,2.60003,2692.3,2692.0,0.04788482]
[1723371096864,3.12426599,2692.3,2691.9,0.04790142]
[1723371097089,0.52423599,2692.3,2692.1,0.04786822]
[1723371097276,0.52423599,2692.3,2692.0,0.04788482]
[1723371097610,2.8662499,2692.4,2692.1,0.04786822]
[1723371097905,2.59992,2692.4,2691.9,5.00793]
[1723371098143,2.7317205,2692.8,2692.3,2.4076]
[1723371098267,2.7317205,2692.8,2692.3,5.0076]
[1723371098268,2.7317105,2692.8,2692.3,5.0076]
[1723371098469,2.7317105,2692.8,2692.4,0.04781844]
[1723371098677,2.7317105,2692.8,2692.5,2.59976]
[1723371098678,0.1321805,2692.8,2692.5,2.59976]
[1723371099075,0.1321805,2692.8,2692.6,0.04778525]
[1723371099367,0.1321805,2692.8,2692.6,5.24712525]
[1723371099598,0.1321805,2692.8,2692.6,3.17215778]
[1723371099763,0.1321805,2692.8,2692.6,2.64744525]
[1723371099971,0.1321805,2692.8,2692.6,5.24710525]
[1723371100283,0.1321805,2692.8,2692.6,5.24709525]
[1723371100465,0.1321805,2692.8,2692.7,2.4076]
[1723371100675,0.1321805,2692.8,2692.7,2.4551142]
[1723371101068,2.7317005,2692.8,2692.7,0.0475142]
[1723371101510,2.7317005,2692.8,2692.3,5.00755]
[1723371101676,2.7317005,2692.8,2692.7,0.0475142]
[1723371101903,2.7317005,2692.8,2692.3,2.4076]
[1723371102246,2.7317005,2692.8,2692.3,5.00755]
[1723371102404,0.1321805,2692.8,2692.4,2.64735525]
[1723371103000,0.1321805,2692.8,2692.5,0.07428075]
[1723371103343,0.1321805,2692.8,2692.4,0.04746525]
[1723371103493,0.1321805,2692.8,2692.6,0.04740549]
[1723371103694,0.1321805,2692.8,2692.5,0.04742208]
[1723371104003,0.1321805,2692.8,2692.7,2.59962]
[1723371104432,0.1321805,2692.8,2692.7,4.8982089]
[1723371104744,0.1321805,2692.8,2692.7,4.97247518]
[1723371104945,0.1321805,2692.8,2692.7,7.57209518]
[1723371105094,0.1321805,2692.8,2692.7,8.12209518]
[1723371105296,0.1321805,2692.8,2692.7,8.95885492]
[1723371107343,0.1321805,2692.8,2692.7,11.48420864]
[1723371107499,0.1321805,2692.8,2692.7,17.08382864]
[1723371107901,0.1321805,2692.8,2692.7,19.68344864]
[1723371108161,0.1321805,2692.8,2692.7,17.08382864]
[1723371109863,0.1321805,2692.8,2692.7,14.48420864]
[1723371110074,0.1321805,2692.8,2692.7,11.33458864]
[1723371110688,0.1321805,2692.8,2692.7,8.33458864]
[1723371111031,0.1321805,2692.8,2692.7,10.93420864]
[1723371111448,0.1321805,2692.8,2692.7,8.33458864]
[1723371111638,0.1321805,2692.8,2692.7,10.93420864]
[1723371111959,0.1321805,2692.8,2692.7,8.88458864]
[1723371112745,0.1321805,2692.8,2692.7,11.48420864]
[1723371113824,0.1321805,2692.8,2692.7,14.48420864]
[1723371115062,2.59811,2694.3,2692.7,14.48420864]
[1723371115063,2.59795,2694.5,2693.3,2.2512]
[1723371115374,2.3387,2694.8,2693.9,2.59843]
[1723371115375,2.5977,2694.7,2693.9,2.59843]
[1723371115581,4.93633,2694.8,2694.1,2.5982]
[1723371115735,4.93633,2694.8,2694.2,0.04456497]
[1723371116269,7.53484,2694.3,2694.2,0.04456497]
[1723371116440,2.59857,2693.8,2693.1,2.59916]
[1723371116763,2.59783,2694.6,2693.5,2.5988]
[1723371116764,2.3387,2694.0,2693.5,2.5988]
[1723371116984,2.3387,2694.0,2693.2,0.07424991]
[1723371116985,2.3387,2694.3,2693.8,2.59855]
[1723371117137,2.3387,2694.3,2693.6,0.07424273]
[1723371117138,2.3387,2694.7,2694.1,2.59817]
[1723371117340,5.430074,2694.7,2694.1,2.59817]
[1723371117546,4.93644,2694.7,2694.2,2.64118743]
[1723371118262,4.93644,2694.7,2694.2,0.04302743]
[1723371118465,2.59781,2694.6,2694.2,0.04302743]
[1723371118646,0.753425,2694.6,2694.1,2.59821]
[1723371118836,4.93644,2694.7,2694.3,0.04295235]
[1723371119041,4.93644,2694.7,2694.0,2.59836]
[1723371119238,7.53421,2694.7,2694.4,0.04293578]
[1723371119541,0.753421,2694.6,2694.5,0.04291921]
[1723371119740,2.59778,2694.6,2694.5,0.04291921]
[1723371119971,2.598,2694.4,2693.9,2.59839]
[1723371120284,2.59788,2694.5,2694.0,0.04300206]
[1723371121486,2.59816,2694.3,2694.0,0.04300206]
[1723371121690,5.19628,2694.3,2694.0,0.04300206]
[1723371121980,5.19628,2694.3,2693.7,2.5986]
[1723371121981,2.59814,2694.3,2693.7,2.5986]
[1723371122338,2.59793,2694.5,2693.8,2.59855]
[1723371122539,3.091593,2694.5,2693.8,2.59855]
[1723371122738,3.091593,2694.5,2693.9,0.04301864]
[1723371122973,3.091593,2694.5,2693.9,2.64146864]
[1723371123179,2.59798,2694.4,2693.9,2.64146864]
[1723371123354,5.689553,2694.5,2693.9,2.64146864]
[1723371123690,3.091593,2694.5,2693.9,0.04301864]
[1723371124178,3.091593,2694.5,2693.7,2.5986]
[1723371124179,2.598,2694.4,2694.0,0.0429907]
[1723371124346,2.598,2694.4,2693.8,2.5985]
[1723371124550,3.091593,2694.5,2693.9,2.64145728]
[1723371124952,2.59803,2694.4,2693.9,2.64145728]
[1723371125167,3.091573,2694.5,2693.9,2.64145728]
[1723371125388,2.59791,2694.5,2693.9,5.23985728]
[1723371125589,4.93643,2694.7,2693.9,2.50900728]
[1723371125805,4.93643,2694.7,2694.0,0.55]
[1723371126270,4.93643,2694.7,2694.1,0.04297413]
[1723371126465,4.93643,2694.7,2694.1,2.64118413]
[1723371126686,4.93643,2694.7,2694.1,0.04297413]
[1723371126687,2.5979,2694.5,2694.1,0.04297413]
[1723371127660,2.5979,2694.5,2693.9,2.59839]
[1723371128271,2.5979,2694.5,2694.0,0.0429907]
[1723371128463,2.59809,2694.3,2694.0,0.0429907]
[1723371128902,5.19623,2694.3,2693.8,7.35]
[1723371129195,2.365,2694.1,2693.8,7.35]
[1723371129494,2.365,2694.1,2693.9,0.04285205]
[1723371129667,4.96327,2694.1,2693.9,0.04285205]
[1723371129863,2.59787,2694.6,2693.9,2.50885205]
[1723371130064,2.59787,2694.6,2694.0,0.98588521]